[Event "*** MasterClass Titled Tuesday Blitz"]
[Site "Chess.com"]
[Date "2017.09.05"]
[Round "3"]
[White "ftorodent"]
[Black "Iball95"]
[Result "0-1"]
[WhiteElo "2452"]
[BlackElo "2592"]
[TimeControl "180+2"]
[EndTime "13:39:36 PDT"]
[Termination "Iball95 won by resignation"]

1. d4 {[%clk 0:03:01.9]} 1... e6 {[%clk 0:02:58.4]} 2. c4 {[%clk 0:03:02.5]}
2... Bb4+ {[%clk 0:02:58.8]} 3. Bd2 {[%clk 0:03:02.6]} 3... a5 {[%clk
0:03:00.1]} 4. Nf3 {[%clk 0:03:02]} 4... d6 {[%clk 0:03:00.1]} 5. Nc3 {[%clk
0:03:01.1]} 5... Nc6 {[%clk 0:02:58.3]} 6. a3 {[%clk 0:02:56.8]} 6... Bxc3
{[%clk 0:02:58.8]} 7. Bxc3 {[%clk 0:02:58.4]} 7... Nf6 {[%clk 0:03:00]} 8. Qc2
{[%clk 0:02:59]} 8... O-O {[%clk 0:02:58.9]} 9. e4 {[%clk 0:03:00]} 9... Re8
{[%clk 0:02:57.6]} 10. Bd3 {[%clk 0:03:01]} 10... e5 {[%clk 0:02:58.7]} 11. O-O
{[%clk 0:02:58.5]} 11... Bg4 {[%clk 0:02:55.4]} 12. d5 {[%clk 0:02:59.4]} 12...
Ne7 {[%clk 0:02:42.4]} 13. Nd2 {[%clk 0:02:59.7]} 13... Ng6 {[%clk 0:02:43.3]}
14. b4 {[%clk 0:02:51.6]} 14... axb4 {[%clk 0:02:30.1]} 15. axb4 {[%clk
0:02:51.8]} 15... Nf4 {[%clk 0:02:31.6]} 16. f3 {[%clk 0:02:50.9]} 16... Bd7
{[%clk 0:02:32.4]} 17. Rxa8 {[%clk 0:02:51.2]} 17... Qxa8 {[%clk 0:02:32.6]} 18.
Ra1 {[%clk 0:02:52]} 18... Qc8 {[%clk 0:02:30.7]} 19. Bf1 {[%clk 0:02:40.3]}
19... c6 {[%clk 0:02:29.8]} 20. Qb2 {[%clk 0:02:34.9]} 20... cxd5 {[%clk
0:02:14.1]} 21. cxd5 {[%clk 0:02:35.1]} 21... Qc7 {[%clk 0:02:14.5]} 22. Nc4
{[%clk 0:02:09.7]} 22... Bb5 {[%clk 0:02:12.3]} 23. Nxd6 {[%clk 0:01:55.5]}
23... Qxd6 {[%clk 0:02:11.3]} 24. Bxb5 {[%clk 0:01:53.3]} 24... Qb6+ {[%clk
0:02:12.1]} 25. Kh1 {[%clk 0:01:53.5]} 25... Qxb5 {[%clk 0:02:13]} 26. Bxe5
{[%clk 0:01:54.5]} 26... Nd3 {[%clk 0:02:10.2]} 27. Qe2 {[%clk 0:01:26.6]} 27...
Rxe5 {[%clk 0:02:02]} 28. Rd1 {[%clk 0:01:17.6]} 28... Nxe4 {[%clk 0:01:39.3]}
29. fxe4 {[%clk 0:01:16]} 29... Rxe4 {[%clk 0:01:40.1]} 0-1

[Event "*** MasterClass Titled Tuesday Blitz"]
[Site "Chess.com"]
[Date "2017.09.05"]
[Round "3"]
[White "kleinebeer98"]
[Black "The_Jagermeister"]
[Result "1-0"]
[WhiteElo "2450"]
[BlackElo "2420"]
[TimeControl "180+2"]
[EndTime "13:40:46 PDT"]
[Termination "kleinebeer98 won by resignation"]

1. e4 {[%clk 0:03:01.9]} 1... e6 {[%clk 0:03:00.3]} 2. d4 {[%clk 0:03:02.7]}
2... d5 {[%clk 0:03:00.1]} 3. Nd2 {[%clk 0:03:04.4]} 3... h6 {[%clk 0:02:59.4]}
4. Ngf3 {[%clk 0:03:04.2]} 4... Nf6 {[%clk 0:02:59.3]} 5. Bd3 {[%clk 0:03:02.6]}
5... c5 {[%clk 0:02:59.7]} 6. exd5 {[%clk 0:03:01.1]} 6... exd5 {[%clk
0:03:00.3]} 7. Qe2+ {[%clk 0:02:59.2]} 7... Be7 {[%clk 0:02:50.8]} 8. dxc5
{[%clk 0:02:57.8]} 8... O-O {[%clk 0:02:51.6]} 9. O-O {[%clk 0:02:54.9]} 9...
Bxc5 {[%clk 0:02:50.8]} 10. Nb3 {[%clk 0:02:53.4]} 10... Re8 {[%clk 0:02:49.1]}
11. Qd1 {[%clk 0:02:32.8]} 11... Bd6 {[%clk 0:02:47]} 12. h3 {[%clk 0:02:31.6]}
12... Nc6 {[%clk 0:02:45.8]} 13. c3 {[%clk 0:02:32.1]} 13... Ne4 {[%clk
0:02:41.2]} 14. Re1 {[%clk 0:02:26.7]} 14... Bf5 {[%clk 0:02:37.2]} 15. Be3
{[%clk 0:02:21.1]} 15... Qf6 {[%clk 0:02:31.5]} 16. Nbd4 {[%clk 0:02:16.7]}
16... Bh7 {[%clk 0:02:18.2]} 17. Qb3 {[%clk 0:02:04.8]} 17... Rad8 {[%clk
0:01:28.3]} 18. Qxb7 {[%clk 0:01:55.1]} 18... Rb8 {[%clk 0:01:26.9]} 19. Qxc6
{[%clk 0:01:54.9]} 19... Rec8 {[%clk 0:01:13]} 20. Qxd5 {[%clk 0:01:53.7]} 20...
Rc5 {[%clk 0:01:12.6]} 21. Bxe4 {[%clk 0:01:45]} 21... Rxd5 {[%clk 0:01:11.3]}
22. Bxd5 {[%clk 0:01:46.9]} 22... Rxb2 {[%clk 0:01:09.2]} 23. Nb3 {[%clk
0:01:42.1]} 23... Bf5 {[%clk 0:00:51.1]} 24. c4 {[%clk 0:01:27.6]} 24... Qg6
{[%clk 0:00:43.6]} 25. Nh4 {[%clk 0:01:28.8]} 25... Qh5 {[%clk 0:00:44.1]} 26.
Nxf5 {[%clk 0:01:29.7]} 26... Qxf5 {[%clk 0:00:45.5]} 27. Bd4 {[%clk 0:01:31.3]}
27... Rxb3 {[%clk 0:00:27]} 28. Re8+ {[%clk 0:01:16.3]} 1-0

[Event "*** MasterClass Titled Tuesday Blitz"]
[Site "Chess.com"]
[Date "2017.09.05"]
[Round "3"]
[White "nonscitis"]
[Black "Indianlad"]
[Result "1-0"]
[WhiteElo "2425"]
[BlackElo "2625"]
[TimeControl "180+2"]
[EndTime "13:40:54 PDT"]
[Termination "nonscitis won by resignation"]

1. e4 {[%clk 0:03:01.9]} 1... c5 {[%clk 0:02:59.9]} 2. Nf3 {[%clk 0:03:01.9]}
2... d6 {[%clk 0:03:01.8]} 3. d4 {[%clk 0:03:01.8]} 3... cxd4 {[%clk 0:03:03.7]}
4. Nxd4 {[%clk 0:03:03.1]} 4... Nf6 {[%clk 0:03:05.2]} 5. Nc3 {[%clk 0:03:03.1]}
5... a6 {[%clk 0:03:06.7]} 6. Bg5 {[%clk 0:03:02.8]} 6... Qb6 {[%clk 0:03:06.8]}
7. a3 {[%clk 0:02:46.7]} 7... Nbd7 {[%clk 0:03:06.1]} 8. Bc4 {[%clk 0:02:41.6]}
8... e6 {[%clk 0:02:47.8]} 9. O-O {[%clk 0:02:37.8]} 9... Be7 {[%clk 0:02:49.1]}
10. Nxe6 {[%clk 0:02:05.5]} 10... fxe6 {[%clk 0:02:46.8]} 11. Bxe6 {[%clk
0:02:06]} 11... Ne5 {[%clk 0:02:43.5]} 12. Bb3 {[%clk 0:02:03]} 12... Bg4 {[%clk
0:02:37.5]} 13. Qd2 {[%clk 0:02:00.5]} 13... Ned7 {[%clk 0:02:32.1]} 14. Kh1
{[%clk 0:01:58.2]} 14... h6 {[%clk 0:02:27.3]} 15. Be3 {[%clk 0:01:56.4]} 15...
Qc7 {[%clk 0:02:26.1]} 16. f4 {[%clk 0:01:49.1]} 16... Bh5 {[%clk 0:02:27.4]}
17. Rae1 {[%clk 0:01:44.7]} 17... Bf7 {[%clk 0:02:23.2]} 18. Bxf7+ {[%clk
0:01:43.6]} 18... Kxf7 {[%clk 0:02:25.1]} 19. Bd4 {[%clk 0:01:34.1]} 19... Rhd8
{[%clk 0:02:18.5]} 20. Qe2 {[%clk 0:01:01]} 20... Kg8 {[%clk 0:01:11.9]} 21. e5
{[%clk 0:00:53.8]} 21... dxe5 {[%clk 0:01:12.7]} 22. fxe5 {[%clk 0:00:54]} 22...
Bc5 {[%clk 0:01:14.1]} 23. Bxc5 {[%clk 0:00:51]} 23... Qxc5 {[%clk 0:01:10.2]}
24. exf6 {[%clk 0:00:49.7]} 24... Nxf6 {[%clk 0:01:12.1]} 25. Qe6+ {[%clk
0:00:42.3]} 25... Kh7 {[%clk 0:01:09.6]} 26. Rxf6 {[%clk 0:00:28.8]} 26... Re8
{[%clk 0:01:10.5]} 27. Rxh6+ {[%clk 0:00:26.3]} 27... gxh6 {[%clk 0:01:09.3]}
28. Qf7+ {[%clk 0:00:26.6]} 1-0

[Event "*** MasterClass Titled Tuesday Blitz"]
[Site "Chess.com"]
[Date "2017.09.05"]
[Round "3"]
[White "NTBT_DHS"]
[Black "Fy_Rakotomaharo"]
[Result "1-0"]
[WhiteElo "2546"]
[BlackElo "2469"]
[TimeControl "180+2"]
[EndTime "13:40:56 PDT"]
[Termination "NTBT_DHS won on time"]

1. d4 {[%clk 0:03:01.9]} 1... Nf6 {[%clk 0:03:00.1]} 2. c4 {[%clk 0:03:02.6]}
2... g6 {[%clk 0:03:01.2]} 3. Nc3 {[%clk 0:03:03.6]} 3... d5 {[%clk 0:03:02.3]}
4. cxd5 {[%clk 0:03:03.7]} 4... Nxd5 {[%clk 0:03:03.4]} 5. Bd2 {[%clk
0:03:05.4]} 5... Nb6 {[%clk 0:03:04]} 6. e3 {[%clk 0:03:00.7]} 6... Bg7 {[%clk
0:03:04]} 7. Nf3 {[%clk 0:03:01.5]} 7... O-O {[%clk 0:03:03.4]} 8. Be2 {[%clk
0:03:00]} 8... Nc6 {[%clk 0:02:59.6]} 9. O-O {[%clk 0:03:00.7]} 9... e5 {[%clk
0:02:56.4]} 10. dxe5 {[%clk 0:02:57.3]} 10... Qe7 {[%clk 0:02:56.4]} 11. a4
{[%clk 0:02:56.6]} 11... a5 {[%clk 0:02:51.2]} 12. Nb5 {[%clk 0:02:43.8]} 12...
Nxe5 {[%clk 0:02:37.2]} 13. Nxe5 {[%clk 0:02:44.5]} 13... Bxe5 {[%clk
0:02:36.4]} 14. Bc3 {[%clk 0:02:43.9]} 14... c6 {[%clk 0:02:29.6]} 15. Nd4
{[%clk 0:02:38]} 15... Nd5 {[%clk 0:02:08.2]} 16. Qb3 {[%clk 0:02:27.7]} 16...
Re8 {[%clk 0:02:04.7]} 17. Bc4 {[%clk 0:02:23.6]} 17... Nxc3 {[%clk 0:01:43.8]}
18. bxc3 {[%clk 0:02:25.5]} 18... Kg7 {[%clk 0:01:41]} 19. Rae1 {[%clk
0:02:17.3]} 19... h5 {[%clk 0:01:11.2]} 20. f4 {[%clk 0:02:03.5]} 20... Bf6
{[%clk 0:00:56.8]} 21. e4 {[%clk 0:02:03.2]} 21... Bxd4+ {[%clk 0:00:45.4]} 22.
cxd4 {[%clk 0:02:02.7]} 22... Qb4 {[%clk 0:00:34.8]} 23. Qc2 {[%clk 0:01:46]}
23... Be6 {[%clk 0:00:11.9]} 24. Bxe6 {[%clk 0:01:35.6]} 24... Qxd4+ {[%clk
0:00:13.5]} 25. Kh1 {[%clk 0:01:36.7]} 25... Rxe6 {[%clk 0:00:13.9]} 26. e5
{[%clk 0:01:27]} 1-0

[Event "*** MasterClass Titled Tuesday Blitz"]
[Site "Chess.com"]
[Date "2017.09.05"]
[Round "3"]
[White "novocane"]
[Black "AdrianaNikolova"]
[Result "1-0"]
[WhiteElo "2144"]
[BlackElo "2247"]
[TimeControl "180+2"]
[EndTime "13:40:59 PDT"]
[Termination "novocane won by resignation"]

1. d4 {[%clk 0:02:52.2]} 1... d5 {[%clk 0:02:54.7]} 2. c4 {[%clk 0:02:52.6]}
2... c6 {[%clk 0:02:52.8]} 3. cxd5 {[%clk 0:02:51.7]} 3... cxd5 {[%clk
0:02:53.1]} 4. Bf4 {[%clk 0:02:52.9]} 4... Nf6 {[%clk 0:02:54.3]} 5. Nc3 {[%clk
0:02:45.3]} 5... a6 {[%clk 0:02:55.5]} 6. e3 {[%clk 0:02:39.5]} 6... Nc6 {[%clk
0:02:56.2]} 7. Bd3 {[%clk 0:02:35.3]} 7... Bg4 {[%clk 0:02:54.7]} 8. Qc2 {[%clk
0:02:31.8]} 8... e6 {[%clk 0:02:53.7]} 9. a3 {[%clk 0:02:19.5]} 9... Bd6 {[%clk
0:02:53.8]} 10. Bxd6 {[%clk 0:02:18.8]} 10... Qxd6 {[%clk 0:02:52]} 11. f4
{[%clk 0:02:13.6]} 11... Bh5 {[%clk 0:02:37.2]} 12. Nf3 {[%clk 0:02:11.3]} 12...
Bxf3 {[%clk 0:02:16.5]} 13. gxf3 {[%clk 0:02:10.4]} 13... O-O {[%clk 0:02:18]}
14. O-O {[%clk 0:01:59.6]} 14... Rac8 {[%clk 0:02:15.9]} 15. Kh1 {[%clk
0:01:57.3]} 15... b5 {[%clk 0:02:03.1]} 16. Rg1 {[%clk 0:01:55.6]} 16... b4
{[%clk 0:01:53]} 17. Qg2 {[%clk 0:01:52.7]} 17... g6 {[%clk 0:01:47]} 18. Na4
{[%clk 0:01:51.8]} 18... bxa3 {[%clk 0:01:45.7]} 19. bxa3 {[%clk 0:01:48.8]}
19... Na5 {[%clk 0:01:39.7]} 20. Nc5 {[%clk 0:01:47.7]} 20... Nc4 {[%clk
0:01:38]} 21. Bxc4 {[%clk 0:01:40]} 21... dxc4 {[%clk 0:01:39.9]} 22. Qg5 {[%clk
0:01:30.3]} 22... Nd7 {[%clk 0:01:28.3]} 23. Ne4 {[%clk 0:01:20.4]} 23... Qd5
{[%clk 0:01:19.2]} 24. Qe7 {[%clk 0:01:16.9]} 24... Rfe8 {[%clk 0:01:02.5]} 25.
Qxd7 {[%clk 0:01:15.7]} 25... Qxd7 {[%clk 0:00:57.9]} 26. Nf6+ {[%clk
0:01:15.1]} 26... Kg7 {[%clk 0:00:59.8]} 27. Nxd7 {[%clk 0:01:16.3]} 27... c3
{[%clk 0:00:50.1]} 28. Rgc1 {[%clk 0:01:12.3]} 28... c2 {[%clk 0:00:50.8]} 29.
Nc5 {[%clk 0:01:12.7]} 29... f6 {[%clk 0:00:43.4]} 30. Rxc2 {[%clk 0:01:09.3]}
30... e5 {[%clk 0:00:44.4]} 31. fxe5 {[%clk 0:01:09.1]} 31... fxe5 {[%clk
0:00:46.3]} 32. dxe5 {[%clk 0:01:02.8]} 32... Rxe5 {[%clk 0:00:48.2]} 33. Ne6+
{[%clk 0:01:03.5]} 1-0

[Event "*** MasterClass Titled Tuesday Blitz"]
[Site "Chess.com"]
[Date "2017.09.05"]
[Round "3"]
[White "pedromartinez91"]
[Black "PrinceMurad09"]
[Result "0-1"]
[WhiteElo "2314"]
[BlackElo "2351"]
[TimeControl "180+2"]
[EndTime "13:41:20 PDT"]
[Termination "PrinceMurad09 won by resignation"]

1. e4 {[%clk 0:02:58.1]} 1... c5 {[%clk 0:03:00.1]} 2. Nf3 {[%clk 0:02:54.3]}
2... d6 {[%clk 0:03:00.8]} 3. d4 {[%clk 0:02:50.8]} 3... cxd4 {[%clk 0:03:01.3]}
4. Nxd4 {[%clk 0:02:51.6]} 4... Nf6 {[%clk 0:03:02]} 5. Nc3 {[%clk 0:02:52.1]}
5... g6 {[%clk 0:03:03.4]} 6. Nb3 {[%clk 0:02:51.4]} 6... Bg7 {[%clk 0:03:04.5]}
7. Be2 {[%clk 0:02:50.9]} 7... Nc6 {[%clk 0:03:05.5]} 8. O-O {[%clk 0:02:51.5]}
8... O-O {[%clk 0:03:06.5]} 9. Re1 {[%clk 0:02:52.2]} 9... Be6 {[%clk
0:03:05.3]} 10. Bf1 {[%clk 0:02:52.4]} 10... d5 {[%clk 0:03:04.2]} 11. Nc5
{[%clk 0:02:47.8]} 11... dxe4 {[%clk 0:02:41.5]} 12. Nxe6 {[%clk 0:02:43.8]}
12... Qxd1 {[%clk 0:02:19.5]} 13. Rxd1 {[%clk 0:02:43.4]} 13... fxe6 {[%clk
0:02:20.5]} 14. Bc4 {[%clk 0:02:38]} 14... Kf7 {[%clk 0:02:17.2]} 15. Bg5 {[%clk
0:02:34.3]} 15... h6 {[%clk 0:02:12.8]} 16. Bxf6 {[%clk 0:02:34.6]} 16... Bxf6
{[%clk 0:02:10.3]} 17. Nxe4 {[%clk 0:02:35.2]} 17... Rfd8 {[%clk 0:02:04.5]} 18.
Nc5 {[%clk 0:02:32.7]} 18... Bxb2 {[%clk 0:01:48.3]} 19. Rab1 {[%clk 0:02:28.5]}
19... Rxd1+ {[%clk 0:01:46.7]} 20. Rxd1 {[%clk 0:02:27.7]} 20... Rd8 {[%clk
0:01:32.6]} 21. Rb1 {[%clk 0:02:20.8]} 21... Rd4 {[%clk 0:00:54.4]} 22. Bxe6+
{[%clk 0:02:18.5]} 22... Kf6 {[%clk 0:00:51.6]} 23. Bb3 {[%clk 0:02:17.8]} 23...
b6 {[%clk 0:00:43.1]} 24. Nd3 {[%clk 0:02:10.3]} 24... Ba3 {[%clk 0:00:43.7]}
25. Kf1 {[%clk 0:02:10.1]} 25... e5 {[%clk 0:00:43.7]} 26. f3 {[%clk 0:02:10.1]}
26... Be7 {[%clk 0:00:43.8]} 27. Nf2 {[%clk 0:02:11.1]} 27... Rd8 {[%clk
0:00:41.1]} 28. Ne4+ {[%clk 0:02:12]} 28... Kg7 {[%clk 0:00:42.2]} 29. c3 {[%clk
0:02:12.8]} 29... Na5 {[%clk 0:00:38.2]} 30. Ke2 {[%clk 0:02:13.2]} 30... Nb7
{[%clk 0:00:35.6]} 31. Bc2 {[%clk 0:02:11.2]} 31... Nc5 {[%clk 0:00:36.1]} 32.
Nxc5 {[%clk 0:02:12]} 32... Bxc5 {[%clk 0:00:37.1]} 33. a4 {[%clk 0:02:12.4]}
33... a5 {[%clk 0:00:35.7]} 34. h4 {[%clk 0:02:11.7]} 34... Kf6 {[%clk
0:00:36.4]} 35. Be4 {[%clk 0:02:10.3]} 35... Rd6 {[%clk 0:00:34.8]} 36. g4
{[%clk 0:02:11.1]} 36... g5 {[%clk 0:00:33.6]} 37. hxg5+ {[%clk 0:02:10.4]}
37... Kxg5 {[%clk 0:00:34.2]} 38. Rh1 {[%clk 0:02:12]} 38... Kf4 {[%clk
0:00:34.4]} 39. Rh5 {[%clk 0:02:12.7]} 39... Re6 {[%clk 0:00:26.6]} 40. Rf5+
{[%clk 0:02:10.5]} 40... Kg3 {[%clk 0:00:27.3]} 41. Rf8 {[%clk 0:02:11.3]} 41...
Bxf8 {[%clk 0:00:24.2]} 42. Bd5 {[%clk 0:02:09]} 42... Rd6 {[%clk 0:00:25.1]}
43. c4 {[%clk 0:02:10.1]} 43... Kf4 {[%clk 0:00:25.9]} 44. Kd3 {[%clk
0:02:08.8]} 44... Be7 {[%clk 0:00:27]} 45. Ke2 {[%clk 0:02:09.9]} 45... Bg5
{[%clk 0:00:28.1]} 46. Kd3 {[%clk 0:02:11.3]} 46... Rd8 {[%clk 0:00:29.2]} 47.
Ke2 {[%clk 0:02:12.5]} 47... Rh8 {[%clk 0:00:29.9]} 48. Bf7 {[%clk 0:02:13.6]}
48... e4 {[%clk 0:00:30.2]} 49. fxe4 {[%clk 0:02:14.5]} 49... Kxe4 {[%clk
0:00:31.6]} 50. Be6 {[%clk 0:02:14.8]} 50... Kd4 {[%clk 0:00:32.5]} 51. Bd5
{[%clk 0:02:16.1]} 51... Rf8 {[%clk 0:00:34]} 52. Bf3 {[%clk 0:02:16]} 0-1

[Event "*** MasterClass Titled Tuesday Blitz"]
[Site "Chess.com"]
[Date "2017.09.05"]
[Round "3"]
[White "Frolik67"]
[Black "HKBurwell"]
[Result "1-0"]
[WhiteElo "2512"]
[BlackElo "2350"]
[TimeControl "180+2"]
[EndTime "13:41:22 PDT"]
[Termination "Frolik67 won by resignation"]

1. e4 {[%clk 0:03:01.9]} 1... e5 {[%clk 0:01:49.4]} 2. Nf3 {[%clk 0:03:01.8]}
2... Nf6 {[%clk 0:01:49.8]} 3. Nc3 {[%clk 0:03:01.6]} 3... Nc6 {[%clk
0:01:50.7]} 4. Bb5 {[%clk 0:03:02.3]} 4... Nd4 {[%clk 0:01:51.5]} 5. Bc4 {[%clk
0:03:02.7]} 5... Nxf3+ {[%clk 0:01:51.5]} 6. Qxf3 {[%clk 0:03:04.7]} 6... d6
{[%clk 0:01:44.3]} 7. h3 {[%clk 0:03:05.3]} 7... Be7 {[%clk 0:01:45]} 8. d3
{[%clk 0:03:05.5]} 8... h6 {[%clk 0:01:45.7]} 9. a3 {[%clk 0:03:03.1]} 9... O-O
{[%clk 0:01:41.8]} 10. g4 {[%clk 0:03:03.7]} 10... Nh7 {[%clk 0:01:40.3]} 11.
Ne2 {[%clk 0:03:01.9]} 11... Bg5 {[%clk 0:01:35.4]} 12. Be3 {[%clk 0:02:57.1]}
12... c6 {[%clk 0:01:32.8]} 13. O-O-O {[%clk 0:02:55.3]} 13... b5 {[%clk
0:01:30.8]} 14. Bb3 {[%clk 0:02:55.7]} 14... Be6 {[%clk 0:01:29.6]} 15. h4
{[%clk 0:02:52.2]} 15... Bxe3+ {[%clk 0:01:27.6]} 16. fxe3 {[%clk 0:02:54.2]}
16... a5 {[%clk 0:01:17.7]} 17. Kb1 {[%clk 0:02:45.5]} 17... a4 {[%clk
0:01:08.8]} 18. Ba2 {[%clk 0:02:46.5]} 18... b4 {[%clk 0:01:03.8]} 19. axb4
{[%clk 0:02:47.2]} 19... Qb6 {[%clk 0:01:03.1]} 20. c3 {[%clk 0:02:45.1]} 20...
a3 {[%clk 0:01:01.3]} 21. b3 {[%clk 0:02:41.2]} 21... c5 {[%clk 0:01:01.4]} 22.
d4 {[%clk 0:02:38.7]} 22... cxb4 {[%clk 0:00:51.5]} 23. c4 {[%clk 0:02:39.5]}
23... Bxc4 {[%clk 0:00:50]} 24. Nc1 {[%clk 0:02:33.9]} 24... Be6 {[%clk
0:00:47.7]} 25. g5 {[%clk 0:02:30.2]} 25... Rfc8 {[%clk 0:00:39.6]} 26. gxh6
{[%clk 0:02:29.7]} 26... Qc7 {[%clk 0:00:30.7]} 27. Qg2 {[%clk 0:02:23.1]} 27...
g6 {[%clk 0:00:29.6]} 28. h5 {[%clk 0:02:22.4]} 28... Kh8 {[%clk 0:00:29.2]} 29.
hxg6 {[%clk 0:02:22.3]} 29... fxg6 {[%clk 0:00:31.1]} 30. Rd2 {[%clk 0:02:11.1]}
30... exd4 {[%clk 0:00:26.6]} 31. exd4 {[%clk 0:02:09.7]} 31... d5 {[%clk
0:00:27.9]} 32. Qxg6 {[%clk 0:02:04.7]} 32... Qf7 {[%clk 0:00:21.7]} 33. Qg7+
{[%clk 0:01:53.5]} 33... Qxg7 {[%clk 0:00:22.1]} 34. hxg7+ {[%clk 0:01:55.4]}
34... Kxg7 {[%clk 0:00:23.5]} 35. Rg2+ {[%clk 0:01:56.3]} 35... Kh8 {[%clk
0:00:23.8]} 36. Nd3 {[%clk 0:01:53]} 36... dxe4 {[%clk 0:00:18.3]} 37. Ne5
{[%clk 0:01:53.9]} 37... Rg8 {[%clk 0:00:15.1]} 38. Ng6+ {[%clk 0:01:50.1]}
38... Rxg6 {[%clk 0:00:16]} 39. Rxg6 {[%clk 0:01:52]} 39... Bf5 {[%clk
0:00:16.3]} 40. Rgh6 {[%clk 0:01:48.4]} 40... e3+ {[%clk 0:00:14.9]} 41. Ka1
{[%clk 0:01:49.7]} 41... Rd8 {[%clk 0:00:11.2]} 42. Bb1 {[%clk 0:01:49.8]} 42...
Bxb1 {[%clk 0:00:09.6]} 43. Kxb1 {[%clk 0:01:51.8]} 43... Rd7 {[%clk 0:00:10.4]}
44. Kc2 {[%clk 0:01:52.7]} 44... Kg8 {[%clk 0:00:10.9]} 45. Kd3 {[%clk
0:01:53.3]} 45... Nf6 {[%clk 0:00:10.1]} 46. Rxf6 {[%clk 0:01:53.8]} 1-0

[Event "*** MasterClass Titled Tuesday Blitz"]
[Site "Chess.com"]
[Date "2017.09.05"]
[Round "3"]
[White "Alohamora11"]
[Black "goingin33"]
[Result "0-1"]
[WhiteElo "2106"]
[BlackElo "2287"]
[TimeControl "180+2"]
[EndTime "13:41:26 PDT"]
[Termination "goingin33 won by checkmate"]

1. e4 {[%clk 0:03:01.9]} 1... e6 {[%clk 0:03:00.7]} 2. d4 {[%clk 0:03:01.2]}
2... d5 {[%clk 0:03:02]} 3. Nd2 {[%clk 0:02:59.6]} 3... Be7 {[%clk 0:03:03]} 4.
c3 {[%clk 0:02:58.8]} 4... c5 {[%clk 0:03:02.5]} 5. Ngf3 {[%clk 0:02:59.1]} 5...
Nf6 {[%clk 0:03:02.2]} 6. e5 {[%clk 0:02:58.7]} 6... Nfd7 {[%clk 0:03:03.5]} 7.
Bd3 {[%clk 0:02:59.2]} 7... Nc6 {[%clk 0:03:03.4]} 8. O-O {[%clk 0:02:58.3]}
8... g5 {[%clk 0:03:03.1]} 9. Qc2 {[%clk 0:02:15.3]} 9... g4 {[%clk 0:02:56]}
10. Ne1 {[%clk 0:02:16.3]} 10... cxd4 {[%clk 0:02:57.3]} 11. f4 {[%clk
0:02:11.2]} 11... gxf3 {[%clk 0:02:51.4]} 12. Ndxf3 {[%clk 0:02:12]} 12... Ndxe5
{[%clk 0:02:49.4]} 13. Nxe5 {[%clk 0:02:11.6]} 13... Nxe5 {[%clk 0:02:51.3]} 14.
Bxh7 {[%clk 0:02:10.4]} 14... dxc3 {[%clk 0:02:50.8]} 15. bxc3 {[%clk
0:01:57.2]} 15... Bc5+ {[%clk 0:02:51.9]} 16. Kh1 {[%clk 0:01:58.2]} 16... Qh4
{[%clk 0:02:52.9]} 17. Bf4 {[%clk 0:01:44.9]} 17... Ng4 {[%clk 0:02:36.7]} 18.
Bg3 {[%clk 0:01:35.8]} 18... Qxh7 {[%clk 0:02:33.5]} 19. Qa4+ {[%clk 0:01:36.8]}
19... Bd7 {[%clk 0:02:33.2]} 20. Qxg4 {[%clk 0:01:38.7]} 20... Rg8 {[%clk
0:02:28.3]} 21. Qf3 {[%clk 0:01:33.7]} 21... Bc6 {[%clk 0:02:15.4]} 22. Nd3
{[%clk 0:01:26]} 22... d4 {[%clk 0:02:09.9]} 23. Qf2 {[%clk 0:01:26.8]} 23...
Bd6 {[%clk 0:01:57.8]} 24. Nf4 {[%clk 0:00:59.2]} 24... dxc3 {[%clk 0:01:38.4]}
25. Rad1 {[%clk 0:00:54.9]} 25... Rd8 {[%clk 0:01:18.5]} 26. Bh4 {[%clk
0:00:27.2]} 26... Rd7 {[%clk 0:01:06.8]} 27. Bg3 {[%clk 0:00:27.8]} 27... Rg4
{[%clk 0:00:58.9]} 28. Rxd6 {[%clk 0:00:14.5]} 28... Rxd6 {[%clk 0:00:58.7]} 29.
h3 {[%clk 0:00:11]} 29... Rd2 {[%clk 0:00:57.9]} 30. Qxa7 {[%clk 0:00:06.7]}
30... Rxf4 {[%clk 0:00:53.4]} 31. Qb8+ {[%clk 0:00:07.6]} 31... Rd8 {[%clk
0:00:54.5]} 32. Qxf4 {[%clk 0:00:08.6]} 32... Qxh3+ {[%clk 0:00:55.7]} 33. Kg1
{[%clk 0:00:09.3]} 33... Qxg2# {[%clk 0:00:57.7]} 0-1

[Event "*** MasterClass Titled Tuesday Blitz"]
[Site "Chess.com"]
[Date "2017.09.05"]
[Round "3"]
[White "JSPrepz"]
[Black "nihalsarin"]
[Result "1-0"]
[WhiteElo "2450"]
[BlackElo "2638"]
[TimeControl "180+2"]
[EndTime "13:41:32 PDT"]
[Termination "JSPrepz won by resignation"]

1. Nf3 {[%clk 0:03:01.9]} 1... Nf6 {[%clk 0:03:00.4]} 2. c4 {[%clk 0:03:02.9]}
2... e6 {[%clk 0:03:00.6]} 3. g3 {[%clk 0:03:04]} 3... d5 {[%clk 0:03:01.9]} 4.
Bg2 {[%clk 0:03:05.3]} 4... Be7 {[%clk 0:03:03.5]} 5. d4 {[%clk 0:03:06.7]} 5...
O-O {[%clk 0:03:04.6]} 6. Qc2 {[%clk 0:03:08.2]} 6... c5 {[%clk 0:03:04.2]} 7.
O-O {[%clk 0:03:09.3]} 7... cxd4 {[%clk 0:03:04.4]} 8. Nxd4 {[%clk 0:03:11.2]}
8... e5 {[%clk 0:03:05.5]} 9. Nf5 {[%clk 0:03:12.3]} 9... d4 {[%clk 0:03:07.1]}
10. Nxe7+ {[%clk 0:03:13.6]} 10... Qxe7 {[%clk 0:03:08.7]} 11. Bg5 {[%clk
0:03:15.3]} 11... Nc6 {[%clk 0:03:08.6]} 12. Nd2 {[%clk 0:03:13.4]} 12... h6
{[%clk 0:03:09.7]} 13. Bxf6 {[%clk 0:03:14.2]} 13... Qxf6 {[%clk 0:03:11.6]} 14.
Ne4 {[%clk 0:03:15.9]} 14... Qe7 {[%clk 0:03:12.5]} 15. a3 {[%clk 0:03:15.7]}
15... a5 {[%clk 0:03:12.2]} 16. c5 {[%clk 0:03:17]} 16... Bf5 {[%clk 0:03:09.8]}
17. Qc4 {[%clk 0:03:16.9]} 17... Bxe4 {[%clk 0:02:52.6]} 18. Bxe4 {[%clk
0:03:17.4]} 18... Kh8 {[%clk 0:02:53.9]} 19. b4 {[%clk 0:03:17.4]} 19... f5
{[%clk 0:02:51.7]} 20. Bd5 {[%clk 0:03:14.3]} 20... Rad8 {[%clk 0:02:35.9]} 21.
b5 {[%clk 0:03:10.8]} 21... Nb8 {[%clk 0:02:35.2]} 22. c6 {[%clk 0:02:45.4]}
22... bxc6 {[%clk 0:02:34.2]} 23. bxc6 {[%clk 0:02:47.3]} 23... Qc7 {[%clk
0:02:34.1]} 24. Rab1 {[%clk 0:02:39.8]} 24... Rc8 {[%clk 0:02:29.8]} 25. Rfc1
{[%clk 0:02:38.5]} 25... Qd6 {[%clk 0:02:16]} 26. c7 {[%clk 0:01:52.7]} 26...
Na6 {[%clk 0:02:12.5]} 27. Bb7 {[%clk 0:01:46.8]} 27... Rxc7 {[%clk 0:01:53.4]}
28. Qxa6 {[%clk 0:01:47]} 28... Rxc1+ {[%clk 0:01:54.1]} 29. Rxc1 {[%clk
0:01:48.8]} 29... Qxa3 {[%clk 0:01:55.5]} 30. Qc4 {[%clk 0:01:43.2]} 30... Qb2
{[%clk 0:01:44.6]} 31. Bd5 {[%clk 0:01:39]} 31... a4 {[%clk 0:01:38.4]} 32. Rc2
{[%clk 0:01:30.2]} 32... Qa1+ {[%clk 0:01:19.8]} 33. Kg2 {[%clk 0:01:30.6]}
33... f4 {[%clk 0:01:18.3]} 34. Qc5 {[%clk 0:01:31.2]} 34... Rd8 {[%clk
0:01:08.5]} 35. Qe7 {[%clk 0:00:58.3]} 35... Rb8 {[%clk 0:00:30.9]} 36. Rc7
{[%clk 0:00:53.5]} 1-0